[Event "Late-Titled-Tuesday-Blitz-March-12-2024"]
[Site "Chess.com"]
[Date "2024.03.12"]
[Round "10"]
[White "Fh2411"]
[Black "Rodalquilar"]
[Result "0-1"]
[WhiteElo "2667"]
[BlackElo "2801"]
[TimeControl "180+1"]
[EndTime "15:54:10 PDT"]
[Termination "Rodalquilar won by resignation"]

1. d4 {[%clk 0:02:56.8]} 1... d5 {[%clk 0:03:00.2]} 2. Nf3 {[%clk 0:02:56.6]}
2... Nf6 {[%clk 0:03:00.2]} 3. Bf4 {[%clk 0:02:57.3]} 3... e6 {[%clk 0:03:00.7]}
4. e3 {[%clk 0:02:57.7]} 4... Bd6 {[%clk 0:03:01.1]} 5. Bg3 {[%clk 0:02:58.1]}
5... O-O {[%clk 0:03:00]} 6. Nbd2 {[%clk 0:02:58]} 6... c5 {[%clk 0:03:00.5]} 7.
c3 {[%clk 0:02:55.1]} 7... Qc7 {[%clk 0:03:00.8]} 8. dxc5 {[%clk 0:02:49.6]}
8... Qxc5 {[%clk 0:03:00.5]} 9. Bd3 {[%clk 0:02:50.3]} 9... Nbd7 {[%clk
0:02:55.2]} 10. Qe2 {[%clk 0:02:45.6]} 10... h6 {[%clk 0:02:47.4]} 11. e4 {[%clk
0:02:42.6]} 11... Bxg3 {[%clk 0:02:46.7]} 12. hxg3 {[%clk 0:02:42.1]} 12... dxe4
{[%clk 0:02:47.2]} 13. Nxe4 {[%clk 0:02:42]} 13... Nxe4 {[%clk 0:02:47.6]} 14.
Qxe4 {[%clk 0:02:28.3]} 14... Nf6 {[%clk 0:02:47.8]} 15. Qe2 {[%clk 0:02:11.4]}
15... Bd7 {[%clk 0:02:45.7]} 16. Ne5 {[%clk 0:02:10]} 16... Rfd8 {[%clk
0:02:45.1]} 17. O-O {[%clk 0:02:02.5]} 17... Be8 {[%clk 0:02:37.4]} 18. Rfd1
{[%clk 0:01:56.5]} 18... Rd5 {[%clk 0:02:36.7]} 19. Nf3 {[%clk 0:01:53.1]} 19...
Rad8 {[%clk 0:02:36.2]} 20. Bc2 {[%clk 0:01:52.8]} 20... Bb5 {[%clk 0:02:33.9]}
21. Qe1 {[%clk 0:01:51.7]} 21... Bc6 {[%clk 0:02:15.5]} 22. Nd4 {[%clk
0:01:36.8]} 22... Be8 {[%clk 0:02:15.1]} 23. Nf3 {[%clk 0:01:31.2]} 23... Qb6
{[%clk 0:02:15.2]} 24. b3 {[%clk 0:01:26.4]} 24... Qa5 {[%clk 0:02:04.3]} 25.
Rxd5 {[%clk 0:01:09.6]} 25... Nxd5 {[%clk 0:01:53.4]} 26. c4 {[%clk 0:00:57.7]}
26... Qxe1+ {[%clk 0:01:48.3]} 27. Rxe1 {[%clk 0:00:57.9]} 27... Nb4 {[%clk
0:01:34.7]} 28. Bb1 {[%clk 0:00:58.5]} 28... a5 {[%clk 0:01:34.3]} 29. Kf1
{[%clk 0:00:51.2]} 29... a4 {[%clk 0:01:32.8]} 30. a3 {[%clk 0:00:45.5]} 30...
Nc6 {[%clk 0:01:03.2]} 31. b4 {[%clk 0:00:45.5]} 31... b6 {[%clk 0:01:03.7]} 32.
Ke2 {[%clk 0:00:39.5]} 32... Ne7 {[%clk 0:01:00.7]} 33. Rd1 {[%clk 0:00:38.2]}
33... Rc8 {[%clk 0:01:01.2]} 34. Bd3 {[%clk 0:00:34.8]} 34... f6 {[%clk
0:00:57.5]} 35. Rc1 {[%clk 0:00:28.5]} 35... e5 {[%clk 0:00:50.3]} 36. Nd2
{[%clk 0:00:22.5]} 36... Kf8 {[%clk 0:00:50.1]} 37. f3 {[%clk 0:00:20.2]} 37...
Nc6 {[%clk 0:00:48.6]} 38. g4 {[%clk 0:00:17.5]} 38... Nd4+ {[%clk 0:00:49.1]}
39. Ke3 {[%clk 0:00:18.2]} 39... Bf7 {[%clk 0:00:46.1]} 40. Ne4 {[%clk
0:00:15.2]} 40... Nb3 {[%clk 0:00:39.6]} 41. Rc3 {[%clk 0:00:15.5]} 41... Ke7
{[%clk 0:00:40.1]} 42. Ng3 {[%clk 0:00:12.8]} 42... g6 {[%clk 0:00:39.6]} 43.
Ne4 {[%clk 0:00:12.4]} 43... f5 {[%clk 0:00:38.3]} 44. Nd2 {[%clk 0:00:12.7]}
44... Nd4 {[%clk 0:00:35.4]} 45. gxf5 {[%clk 0:00:13]} 45... gxf5 {[%clk
0:00:35.7]} 46. f4 {[%clk 0:00:13.6]} 46... Kf6 {[%clk 0:00:28.5]} 47. fxe5+
{[%clk 0:00:13.7]} 47... Kxe5 {[%clk 0:00:29.4]} 48. Nf3+ {[%clk 0:00:14.1]}
48... Nxf3 {[%clk 0:00:29.9]} 49. Kxf3 {[%clk 0:00:14.7]} 49... Kd4 {[%clk
0:00:29.4]} 50. Bxf5 {[%clk 0:00:14]} 50... Rf8 {[%clk 0:00:29]} 51. Rd3+ {[%clk
0:00:12.3]} 51... Kxc4 {[%clk 0:00:29.4]} 52. Kg4 {[%clk 0:00:10.9]} 52... Be6
{[%clk 0:00:24]} 53. Rf3 {[%clk 0:00:10.3]} 53... Rxf5 {[%clk 0:00:22]} 54. Rxf5
{[%clk 0:00:11.2]} 54... Kb3 {[%clk 0:00:22.6]} 55. Kf4 {[%clk 0:00:10.9]} 55...
Bxf5 {[%clk 0:00:23.2]} 56. Kxf5 {[%clk 0:00:11.8]} 56... Kxa3 {[%clk
0:00:23.9]} 57. Kg6 {[%clk 0:00:12.6]} 57... Kxb4 {[%clk 0:00:24.5]} 58. Kxh6
{[%clk 0:00:13.5]} 58... a3 {[%clk 0:00:25.1]} 59. g4 {[%clk 0:00:14.4]} 59...
a2 {[%clk 0:00:25.7]} 60. g5 {[%clk 0:00:15.1]} 60... a1=Q {[%clk 0:00:26.3]}
61. g6 {[%clk 0:00:15.3]} 61... Qf6 {[%clk 0:00:26.5]} 62. Kh7 {[%clk
0:00:15.4]} 62... Qxg6+ {[%clk 0:00:27]} 63. Kxg6 {[%clk 0:00:15.7]} 63... Kc3
{[%clk 0:00:27.7]} 0-1

[Event "Late-Titled-Tuesday-Blitz-March-12-2024"]
[Site "Chess.com"]
[Date "2024.03.12"]
[Round "10"]
[White "sergiochess83"]
[Black "Oleksandr_Bortnyk"]
[Result "0-1"]
[WhiteElo "2902"]
[BlackElo "3014"]
[TimeControl "180+1"]
[EndTime "15:54:12 PDT"]
[Termination "Oleksandr_Bortnyk won by resignation"]

1. e4 {[%clk 0:02:53.6]} 1... Nf6 {[%clk 0:02:48.4]} 2. e5 {[%clk 0:02:48.9]}
2... Nd5 {[%clk 0:02:46.5]} 3. d4 {[%clk 0:02:49.4]} 3... d6 {[%clk 0:02:46.5]}
4. Nf3 {[%clk 0:02:50.3]} 4... dxe5 {[%clk 0:02:46.4]} 5. Nxe5 {[%clk
0:02:50.6]} 5... c6 {[%clk 0:02:46]} 6. Be2 {[%clk 0:02:47.1]} 6... Bf5 {[%clk
0:02:45.4]} 7. O-O {[%clk 0:02:47.2]} 7... e6 {[%clk 0:02:45.4]} 8. a3 {[%clk
0:02:35.6]} 8... Nd7 {[%clk 0:02:44.8]} 9. Nf3 {[%clk 0:02:32.1]} 9... Bd6
{[%clk 0:02:40.8]} 10. c4 {[%clk 0:02:32.1]} 10... N5f6 {[%clk 0:02:40.2]} 11.
Nc3 {[%clk 0:02:31.2]} 11... O-O {[%clk 0:02:40]} 12. h3 {[%clk 0:02:25.1]}
12... Qc7 {[%clk 0:02:39.3]} 13. Nh4 {[%clk 0:02:14.6]} 13... Bg6 {[%clk
0:02:38.7]} 14. Be3 {[%clk 0:02:13.1]} 14... Rfe8 {[%clk 0:02:35.3]} 15. Nxg6
{[%clk 0:02:03.4]} 15... hxg6 {[%clk 0:02:36.2]} 16. Qd2 {[%clk 0:02:03.7]}
16... a5 {[%clk 0:02:35.5]} 17. Rfd1 {[%clk 0:01:52.7]} 17... e5 {[%clk
0:02:30.2]} 18. d5 {[%clk 0:01:51]} 18... Bc5 {[%clk 0:02:28.2]} 19. Rac1 {[%clk
0:01:48.7]} 19... a4 {[%clk 0:02:17.2]} 20. Bg4 {[%clk 0:01:43.2]} 20... Bxe3
{[%clk 0:02:00.5]} 21. Qxe3 {[%clk 0:01:43.8]} 21... e4 {[%clk 0:01:49.6]} 22.
Bxd7 {[%clk 0:01:13.3]} 22... Qxd7 {[%clk 0:01:45.3]} 23. dxc6 {[%clk
0:00:58.3]} 23... Qxc6 {[%clk 0:01:43.2]} 24. Rd4 {[%clk 0:00:38.2]} 24... Re5
{[%clk 0:01:36.2]} 25. Rcd1 {[%clk 0:00:38.2]} 25... Rae8 {[%clk 0:01:35.9]} 26.
Nd5 {[%clk 0:00:34.4]} 26... Nxd5 {[%clk 0:01:26.4]} 27. cxd5 {[%clk 0:00:34.3]}
27... Qd7 {[%clk 0:01:25.6]} 28. d6 {[%clk 0:00:33.5]} 28... R8e6 {[%clk
0:01:24.6]} 29. Qf4 {[%clk 0:00:20.5]} 29... f6 {[%clk 0:01:16.6]} 30. Qe3
{[%clk 0:00:17.6]} 30... Kh7 {[%clk 0:01:09.7]} 31. R1d2 {[%clk 0:00:12.7]}
31... b5 {[%clk 0:01:06.9]} 32. Rd1 {[%clk 0:00:08.8]} 32... f5 {[%clk
0:00:52.6]} 33. g4 {[%clk 0:00:08.9]} 33... Rf6 {[%clk 0:00:38.9]} 34. Qf4
{[%clk 0:00:07.8]} 34... Ree6 {[%clk 0:00:32.7]} 35. g5 {[%clk 0:00:08.1]} 35...
Rf8 {[%clk 0:00:33.2]} 36. h4 {[%clk 0:00:07.6]} 36... Rc8 {[%clk 0:00:29.3]}
37. h5 {[%clk 0:00:07.4]} 37... Rc2 {[%clk 0:00:24.6]} 38. Rd5 {[%clk
0:00:06.9]} 38... e3 {[%clk 0:00:23.5]} 39. fxe3 {[%clk 0:00:06.3]} 39... Re4
{[%clk 0:00:23.2]} 40. hxg6+ {[%clk 0:00:06.1]} 40... Kxg6 {[%clk 0:00:24.1]}
41. Qxf5+ {[%clk 0:00:05.2]} 41... Qxf5 {[%clk 0:00:22.4]} 42. Rxf5 {[%clk
0:00:06.1]} 42... Rg4+ {[%clk 0:00:22.8]} 43. Kf1 {[%clk 0:00:05.5]} 43... Rh4
{[%clk 0:00:23.3]} 44. Kg1 {[%clk 0:00:05.8]} 44... Rg4+ {[%clk 0:00:22.6]} 45.
Kf1 {[%clk 0:00:06.2]} 45... Rh4 {[%clk 0:00:23.5]} 46. Kg1 {[%clk 0:00:06.7]}
46... Kxf5 {[%clk 0:00:24]} 47. d7 {[%clk 0:00:06.7]} 47... Rg4+ {[%clk
0:00:18.4]} 48. Kf1 {[%clk 0:00:07]} 48... Rh4 {[%clk 0:00:19.3]} 49. Kg1 {[%clk
0:00:07.5]} 49... Rh8 {[%clk 0:00:19.5]} 50. d8=Q {[%clk 0:00:07.5]} 50... Rxd8
{[%clk 0:00:20.2]} 51. Rxd8 {[%clk 0:00:07.9]} 51... Rxb2 {[%clk 0:00:21.1]} 52.
Rd5+ {[%clk 0:00:07.3]} 52... Kg4 {[%clk 0:00:19.5]} 53. g6 {[%clk 0:00:06.7]}
53... Kg3 {[%clk 0:00:17.4]} 54. Kf1 {[%clk 0:00:06.6]} 54... Kf3 {[%clk
0:00:18.2]} 55. Rf5+ {[%clk 0:00:06]} 55... Kxe3 {[%clk 0:00:18.6]} 56. Rf7
{[%clk 0:00:06.9]} 56... b4 {[%clk 0:00:14.5]} 57. axb4 {[%clk 0:00:03.6]} 57...
a3 {[%clk 0:00:15.4]} 58. Rxg7 {[%clk 0:00:03]} 58... a2 {[%clk 0:00:16.3]} 59.
Ra7 {[%clk 0:00:03.4]} 59... Rb1+ {[%clk 0:00:17.2]} 60. Kg2 {[%clk 0:00:03.9]}
60... a1=Q {[%clk 0:00:18.1]} 61. Rxa1 {[%clk 0:00:03.8]} 61... Rxa1 {[%clk
0:00:19]} 62. Kg3 {[%clk 0:00:03.1]} 62... Ra6 {[%clk 0:00:19.1]} 0-1

[Event "Late-Titled-Tuesday-Blitz-March-12-2024"]
[Site "Chess.com"]
[Date "2024.03.12"]
[Round "10"]
[White "Veleamater"]
[Black "HajiyevKanan"]
[Result "1/2-1/2"]
[WhiteElo "2338"]
[BlackElo "2520"]
[TimeControl "180+1"]
[EndTime "15:54:14 PDT"]
[Termination "Game drawn - insufficient material"]

1. Nf3 {[%clk 0:03:00.9]} 1... d5 {[%clk 0:03:00.1]} 2. g3 {[%clk 0:03:01.2]}
2... Nf6 {[%clk 0:03:00.8]} 3. Bg2 {[%clk 0:03:02]} 3... g6 {[%clk 0:03:01.7]}
4. O-O {[%clk 0:03:02.7]} 4... Bg7 {[%clk 0:03:02.6]} 5. d3 {[%clk 0:03:03.6]}
5... O-O {[%clk 0:03:03.5]} 6. c4 {[%clk 0:03:04.3]} 6... c5 {[%clk 0:03:04.1]}
7. Nc3 {[%clk 0:03:04.4]} 7... Nc6 {[%clk 0:03:03.9]} 8. e4 {[%clk 0:03:01.5]}
8... dxc4 {[%clk 0:03:03]} 9. dxc4 {[%clk 0:03:01.5]} 9... Qxd1 {[%clk
0:03:03.9]} 10. Rxd1 {[%clk 0:03:00.2]} 10... Be6 {[%clk 0:03:04.2]} 11. Nd5
{[%clk 0:02:51.2]} 11... Nxe4 {[%clk 0:03:04.1]} 12. Nc7 {[%clk 0:02:41]} 12...
Rad8 {[%clk 0:02:57.3]} 13. Re1 {[%clk 0:02:38.4]} 13... Nf6 {[%clk 0:02:05.1]}
14. Nxe6 {[%clk 0:02:25.7]} 14... fxe6 {[%clk 0:02:06]} 15. Rxe6 {[%clk
0:02:11.7]} 15... Rd1+ {[%clk 0:02:00]} 16. Re1 {[%clk 0:02:11.5]} 16... Rxe1+
{[%clk 0:01:52.5]} 17. Nxe1 {[%clk 0:02:11.6]} 17... Ng4 {[%clk 0:01:51.9]} 18.
Nd3 {[%clk 0:01:45.5]} 18... Bd4 {[%clk 0:01:42.4]} 19. Bd5+ {[%clk 0:01:22.8]}
19... Kg7 {[%clk 0:01:40.8]} 20. Bg5 {[%clk 0:01:22.8]} 20... Nxf2 {[%clk
0:01:37.4]} 21. Nxf2 {[%clk 0:01:07.6]} 21... Rxf2 {[%clk 0:01:36.9]} 22. Kh1
{[%clk 0:00:59.5]} 22... e5 {[%clk 0:01:37.1]} 23. Rd1 {[%clk 0:00:36.6]} 23...
Rxb2 {[%clk 0:01:31.2]} 24. Rd3 {[%clk 0:00:30.6]} 24... h6 {[%clk 0:01:20.5]}
25. Be3 {[%clk 0:00:29.2]} 25... Rxa2 {[%clk 0:01:04.2]} 26. Bxd4 {[%clk
0:00:24.7]} 26... cxd4 {[%clk 0:00:49.8]} 27. Rb3 {[%clk 0:00:24]} 27... Na5
{[%clk 0:00:41.5]} 28. Rf3 {[%clk 0:00:21.9]} 28... h5 {[%clk 0:00:35.4]} 29. h4
{[%clk 0:00:21.3]} 29... a6 {[%clk 0:00:27.6]} 30. Rf7+ {[%clk 0:00:20.9]} 30...
Kh6 {[%clk 0:00:28.1]} 31. Rd7 {[%clk 0:00:20.3]} 31... Rf2 {[%clk 0:00:23.1]}
32. Bg8 {[%clk 0:00:10.5]} 32... g5 {[%clk 0:00:23.1]} 33. Rd6+ {[%clk
0:00:03.5]} 33... Kg7 {[%clk 0:00:23.2]} 34. Bd5 {[%clk 0:00:03.5]} 34... gxh4
{[%clk 0:00:22.1]} 35. gxh4 {[%clk 0:00:04.2]} 35... d3 {[%clk 0:00:22.7]} 36.
Be4 {[%clk 0:00:03.3]} 36... d2 {[%clk 0:00:21.9]} 37. Kg1 {[%clk 0:00:03.5]}
37... Re2 {[%clk 0:00:19.7]} 38. Bf3 {[%clk 0:00:04.1]} 38... Re1+ {[%clk
0:00:20.2]} 39. Kf2 {[%clk 0:00:04.6]} 39... e4 {[%clk 0:00:16]} 40. Be2 {[%clk
0:00:03.9]} 40... e3+ {[%clk 0:00:12.5]} 41. Kxe3 {[%clk 0:00:03.6]} 41... d1=Q
{[%clk 0:00:10.6]} 42. Rxd1 {[%clk 0:00:03]} 42... Rxd1 {[%clk 0:00:11.3]} 43.
Bxd1 {[%clk 0:00:03.6]} 43... Nxc4+ {[%clk 0:00:11.2]} 44. Kf4 {[%clk
0:00:04.5]} 44... Kh6 {[%clk 0:00:10.8]} 45. Ke4 {[%clk 0:00:03.3]} 45... b5
{[%clk 0:00:10.9]} 46. Kd4 {[%clk 0:00:03.7]} 46... Nb2 {[%clk 0:00:06.4]} 47.
Bc2 {[%clk 0:00:02.5]} 47... a5 {[%clk 0:00:05.2]} 48. Kc5 {[%clk 0:00:02.8]}
48... a4 {[%clk 0:00:05.8]} 49. Kxb5 {[%clk 0:00:02.8]} 49... a3 {[%clk
0:00:06.4]} 50. Bb3 {[%clk 0:00:03.5]} 50... Nd3 {[%clk 0:00:06]} 51. Ka4 {[%clk
0:00:03.4]} 51... Nf4 {[%clk 0:00:04.9]} 52. Kxa3 {[%clk 0:00:03.5]} 52... Ng2
{[%clk 0:00:04.7]} 53. Bd1 {[%clk 0:00:03.9]} 53... Nxh4 {[%clk 0:00:05.3]} 54.
Bxh5 {[%clk 0:00:04.6]} 1/2-1/2

[Event "Late-Titled-Tuesday-Blitz-March-12-2024"]
[Site "Chess.com"]
[Date "2024.03.12"]
[Round "10"]
[White "ural58"]
[Black "Yeritsyaan"]
[Result "0-1"]
[WhiteElo "2518"]
[BlackElo "2650"]
[TimeControl "180+1"]
[EndTime "15:54:16 PDT"]
[Termination "Yeritsyaan won by resignation"]

1. e4 {[%clk 0:02:54]} 1... g6 {[%clk 0:02:58.7]} 2. d4 {[%clk 0:02:53.1]} 2...
Bg7 {[%clk 0:02:59.4]} 3. Nc3 {[%clk 0:02:52.8]} 3... c6 {[%clk 0:03:00]} 4. Be3
{[%clk 0:02:41.4]} 4... d5 {[%clk 0:03:00.1]} 5. Qd2 {[%clk 0:02:37.7]} 5... h5
{[%clk 0:02:59.1]} 6. f3 {[%clk 0:02:35.5]} 6... dxe4 {[%clk 0:02:58.4]} 7. fxe4
{[%clk 0:02:34.6]} 7... Nh6 {[%clk 0:02:58.8]} 8. h3 {[%clk 0:02:34.4]} 8... Nd7
{[%clk 0:02:56.1]} 9. Nf3 {[%clk 0:02:33.5]} 9... e6 {[%clk 0:02:50.8]} 10.
O-O-O {[%clk 0:02:32.8]} 10... a5 {[%clk 0:02:50.1]} 11. Be2 {[%clk 0:02:16.7]}
11... a4 {[%clk 0:02:44.9]} 12. a3 {[%clk 0:02:12.3]} 12... Qa5 {[%clk
0:02:44.4]} 13. Kb1 {[%clk 0:02:10.6]} 13... b5 {[%clk 0:02:44]} 14. d5 {[%clk
0:01:54.2]} 14... cxd5 {[%clk 0:02:31.7]} 15. Nxb5 {[%clk 0:01:37.8]} 15... Qxd2
{[%clk 0:02:03.4]} 16. Rxd2 {[%clk 0:01:36.5]} 16... dxe4 {[%clk 0:01:56.3]} 17.
Nc7+ {[%clk 0:01:28.1]} 17... Ke7 {[%clk 0:01:56.5]} 18. Nxa8 {[%clk 0:01:27.7]}
18... Nf5 {[%clk 0:01:39.4]} 19. Ba7 {[%clk 0:00:59.7]} 19... Ng3 {[%clk
0:01:07]} 20. Re1 {[%clk 0:00:54.6]} 20... Nxe2 {[%clk 0:01:06]} 21. Rexe2
{[%clk 0:00:54.3]} 21... exf3 {[%clk 0:01:06.1]} 22. gxf3 {[%clk 0:00:54.5]}
22... Ba6 {[%clk 0:01:05.1]} 23. Rxd7+ {[%clk 0:00:27.5]} 23... Kxd7 {[%clk
0:01:03.8]} 24. Nb6+ {[%clk 0:00:28.4]} 24... Kc7 {[%clk 0:00:49.6]} 25. Rd2
{[%clk 0:00:28.5]} 25... Rd8 {[%clk 0:00:50.2]} 26. Rxd8 {[%clk 0:00:28]} 26...
Kxd8 {[%clk 0:00:51.1]} 27. Nxa4 {[%clk 0:00:28.3]} 27... g5 {[%clk 0:00:40.7]}
28. Be3 {[%clk 0:00:22.5]} 28... Bf6 {[%clk 0:00:38.6]} 29. f4 {[%clk
0:00:20.5]} 29... g4 {[%clk 0:00:35.3]} 30. hxg4 {[%clk 0:00:20.6]} 30... hxg4
{[%clk 0:00:36.2]} 31. Kc1 {[%clk 0:00:19.8]} 31... g3 {[%clk 0:00:35.8]} 32.
Kd2 {[%clk 0:00:20]} 32... g2 {[%clk 0:00:35.6]} 33. Bg1 {[%clk 0:00:19.5]}
33... Bb5 {[%clk 0:00:16.5]} 34. Nc5 {[%clk 0:00:19.6]} 34... Bxb2 {[%clk
0:00:14.2]} 35. a4 {[%clk 0:00:19.2]} 35... Bc6 {[%clk 0:00:12.2]} 36. c3 {[%clk
0:00:19.5]} 36... Ba3 {[%clk 0:00:12.1]} 37. a5 {[%clk 0:00:18.5]} 37... Kc7
{[%clk 0:00:11.9]} 38. Nd3 {[%clk 0:00:16.9]} 38... Kb7 {[%clk 0:00:10.3]} 39.
Ne5 {[%clk 0:00:16.6]} 39... Be8 {[%clk 0:00:10.5]} 40. Ke2 {[%clk 0:00:13.2]}
40... f6 {[%clk 0:00:09.5]} 41. Nf3 {[%clk 0:00:11.3]} 41... Bc6 {[%clk
0:00:08.1]} 42. Kf2 {[%clk 0:00:11.4]} 42... Bc5+ {[%clk 0:00:07.9]} 43. Nd4
{[%clk 0:00:10.7]} 43... e5 {[%clk 0:00:07.3]} 44. fxe5 {[%clk 0:00:10.4]} 44...
fxe5 {[%clk 0:00:08.2]} 45. Kg3 {[%clk 0:00:08.5]} 45... exd4 {[%clk 0:00:08.3]}
46. cxd4 {[%clk 0:00:09.1]} 46... Bd6+ {[%clk 0:00:08.6]} 47. Kf2 {[%clk
0:00:06.9]} 47... Bd5 {[%clk 0:00:08.9]} 48. Ke3 {[%clk 0:00:07]} 48... Ka6
{[%clk 0:00:09.5]} 49. Bf2 {[%clk 0:00:06.1]} 49... Kxa5 {[%clk 0:00:09.9]} 50.
Ke2 {[%clk 0:00:06.3]} 50... Kb4 {[%clk 0:00:09.9]} 51. Be3 {[%clk 0:00:06.9]}
51... Kc3 {[%clk 0:00:10]} 52. Kf2 {[%clk 0:00:07.5]} 52... Kd3 {[%clk
0:00:09.5]} 53. Bg5 {[%clk 0:00:05.7]} 53... Kxd4 {[%clk 0:00:08.6]} 54. Kg1
{[%clk 0:00:06.2]} 54... Kd3 {[%clk 0:00:08.5]} 55. Bh4 {[%clk 0:00:06]} 55...
Bc5+ {[%clk 0:00:08.5]} 0-1

[Event "Late-Titled-Tuesday-Blitz-March-12-2024"]
[Site "Chess.com"]
[Date "2024.03.12"]
[Round "10"]
[White "katharinareinecke"]
[Black "RianKapriaga"]
[Result "1/2-1/2"]
[WhiteElo "1976"]
[BlackElo "2269"]
[TimeControl "180+1"]
[EndTime "15:54:16 PDT"]
[Termination "Game drawn by repetition"]

1. e4 {[%clk 0:03:00.9]} 1... d5 {[%clk 0:02:58.9]} 2. exd5 {[%clk 0:03:00.3]}
2... Qxd5 {[%clk 0:02:57.5]} 3. Nc3 {[%clk 0:03:00.4]} 3... Qa5 {[%clk 0:02:57]}
4. d3 {[%clk 0:02:59.6]} 4... Nf6 {[%clk 0:02:56.4]} 5. Nf3 {[%clk 0:02:59.7]}
5... Bg4 {[%clk 0:02:55.4]} 6. h3 {[%clk 0:02:56.9]} 6... Bh5 {[%clk 0:02:54.9]}
7. g3 {[%clk 0:02:51.7]} 7... c6 {[%clk 0:02:53.9]} 8. Bg2 {[%clk 0:02:51.4]}
8... Nbd7 {[%clk 0:02:52.9]} 9. O-O {[%clk 0:02:50.9]} 9... e6 {[%clk
0:02:51.7]} 10. Bd2 {[%clk 0:02:50.6]} 10... Qb6 {[%clk 0:02:46.4]} 11. b3
{[%clk 0:02:43.4]} 11... Bd6 {[%clk 0:02:45.3]} 12. Kh2 {[%clk 0:02:41.5]} 12...
O-O {[%clk 0:02:35]} 13. Be3 {[%clk 0:02:40.2]} 13... Qc7 {[%clk 0:02:32.7]} 14.
Ne4 {[%clk 0:02:35]} 14... Be7 {[%clk 0:02:27]} 15. Bf4 {[%clk 0:02:27.9]} 15...
e5 {[%clk 0:02:19.5]} 16. Be3 {[%clk 0:02:23.4]} 16... Nd5 {[%clk 0:02:18.2]}
17. Bd2 {[%clk 0:02:14.7]} 17... f5 {[%clk 0:02:16.8]} 18. Nc3 {[%clk
0:01:38.8]} 18... Nxc3 {[%clk 0:02:13.1]} 19. Bxc3 {[%clk 0:01:38.7]} 19... e4
{[%clk 0:02:11.9]} 20. dxe4 {[%clk 0:01:39]} 20... fxe4 {[%clk 0:02:10.9]} 21.
Qd4 {[%clk 0:01:36.9]} 21... Bf6 {[%clk 0:02:02.1]} 22. Qc4+ {[%clk 0:01:14.5]}
22... Bf7 {[%clk 0:02:00.8]} 23. Qxe4 {[%clk 0:01:06]} 23... Bxc3 {[%clk
0:01:58.6]} 24. Rad1 {[%clk 0:01:03.1]} 24... Rae8 {[%clk 0:01:32.5]} 25. Qd3
{[%clk 0:01:01.9]} 25... Qa5 {[%clk 0:00:43.4]} 26. Qxd7 {[%clk 0:00:58.6]}
26... Qxa2 {[%clk 0:00:42.1]} 27. Ng5 {[%clk 0:00:47.5]} 27... Bg6 {[%clk
0:00:28]} 28. Ne6 {[%clk 0:00:38.3]} 28... Qxc2 {[%clk 0:00:20.1]} 29. Nxf8
{[%clk 0:00:33.8]} 29... Rxf8 {[%clk 0:00:19.3]} 30. Qxb7 {[%clk 0:00:22]} 30...
c5 {[%clk 0:00:11.2]} 31. Qd5+ {[%clk 0:00:20.2]} 31... Kh8 {[%clk 0:00:09.8]}
32. Qxc5 {[%clk 0:00:19.4]} 32... Qxb3 {[%clk 0:00:08.3]} 33. Qe3 {[%clk
0:00:18.1]} 33... Qb4 {[%clk 0:00:04]} 34. Rc1 {[%clk 0:00:17.6]} 34... Bd4
{[%clk 0:00:02.7]} 35. Qe2 {[%clk 0:00:14.8]} 35... h6 {[%clk 0:00:01.9]} 36.
Qd1 {[%clk 0:00:11.7]} 36... Bb6 {[%clk 0:00:02.2]} 37. Qg4 {[%clk 0:00:08.9]}
37... Qxg4 {[%clk 0:00:01.5]} 38. hxg4 {[%clk 0:00:08.9]} 38... Rxf2 {[%clk
0:00:01.4]} 39. Rxf2 {[%clk 0:00:08.8]} 39... Bxf2 {[%clk 0:00:02.3]} 40. Rc8+
{[%clk 0:00:08.9]} 40... Kh7 {[%clk 0:00:02.2]} 41. Ra8 {[%clk 0:00:09.5]} 41...
Bb6 {[%clk 0:00:02.4]} 42. Bd5 {[%clk 0:00:08.5]} 42... Bd3 {[%clk 0:00:02.1]}
43. Kh3 {[%clk 0:00:04.9]} 43... Kg6 {[%clk 0:00:02]} 44. Kh4 {[%clk 0:00:03.8]}
44... Kf6 {[%clk 0:00:02]} 45. Rf8+ {[%clk 0:00:02.6]} 45... Kg6 {[%clk
0:00:01.5]} 46. Bf7+ {[%clk 0:00:01.7]} 46... Kh7 {[%clk 0:00:01.4]} 47. Bg8+
{[%clk 0:00:02.1]} 47... Kg6 {[%clk 0:00:01.4]} 48. Bf7+ {[%clk 0:00:02.6]}
48... Kh7 {[%clk 0:00:01.6]} 49. Bg8+ {[%clk 0:00:03.1]} 49... Kg6 {[%clk
0:00:01.8]} 50. Bf7+ {[%clk 0:00:03.6]} 1/2-1/2